[Event "ESTCC-65 2025"]
[Site "Swidnica"]
[Date "2025.04.11"]
[Round "7.1"]
[White "Janocha, Wieslaw"]
[Black "Westerinen, Heikki M.J."]
[Result "1/2-1/2"]
[Annotator "ChessBase"]
[ECO "C08"]
[WhiteElo "2186"]
[BlackElo "2209"]
[PlyCount "56"]
[EventDate "2025.04.05"]
[EventType "team-tourn"]
[EventCountry "POL"]
[SourceTitle "playchess.com"]
[Source "ChessBase"]
[SourceQuality "1"]
[WhiteTeam "Poland"]
[BlackTeam "Finland"]
[WhiteTeamCountry "POL"]
[BlackTeamCountry "FIN"]
[TimeControl "40/5400+30:1800+30"]

1. e4 {[%emt 0:00:11]} e6 {[%emt 0:00:15]} 2. d4 {[%emt 0:00:13]} d5 {[%emt 0:00:11]} 3. Nd2 {[%emt 0:01:02]} c5 {[%emt 0:00:23]} 4. exd5 {[%emt 0:01:30]} exd5 {[%emt 0:00:30]} 5. Ngf3 {[%emt 0:00:37]} Nf6 {[%emt 0:00:47]} 6. Be2 {[%emt 0:08:09]} c4 {[%emt 0:11:14]} 7. O-O {[%emt 0:04:13]} Bd6 {[%emt 0:02:52]} 8. b3 {[%emt 0:13:18]} cxb3 {[%emt 0:03:25]} 9. axb3 {[%emt 0:00:14]} O-O {[%emt 0:02:03]} 10. Re1 {[%emt 0:10:31]} Nc6 {[%emt 0:01:17]} 11. Bb2 {[%emt 0:07:39]} Re8 {[%emt 0:07:42]} 12. Nf1 {[%emt 0:02:30]} Ne4 {[%emt 0:12:23]} 13. c3 {[%emt 0:03:31]} Bg4 {[%emt 0:07:36]} 14. g3 {[%emt 0:04:46]} Qd7 {[%emt 0:17:07]} 15. Nh4 {[%emt 0:11:06]} Be6 {[%emt 0:05:58]} 16. Ne3 {[%emt 0:02:16]} f5 {[%emt 0:01:56]} 17. Bd3 {[%emt 0:09:44]} f4 {[%emt 0:02:55]} 18. gxf4 {[%emt 0:05:13]} Bxf4 {[%emt 0:01:27]} 19. Bxe4 {[%emt 0:00:03]} dxe4 {[%emt 0:00:22]} 20. d5 {[%emt 0:00:05]} Bxe3 {[%emt 0:01:14]} 21. Rxe3 {[%emt 0:03:40]} Qxd5 {[%emt 0:01:37]} 22. Qxd5 {[%emt 0:02:22]} Bxd5 {[%emt 0:00:02]} 23. c4 {[%emt 0:00:06]} Bf7 {[%emt 0:00:31]} 24. Rae1 {[%emt 0:01:11]} Re6 {[%emt 0:03:21]} 25. Rxe4 {[%emt 0:00:49]} Rae8 {[%emt 0:00:51]} 26. Rxe6 {[%emt 0:00:28]} Rxe6 {[%emt 0:00:36]} 27. Rxe6 {[%emt 0:00:14]} Bxe6 {[%emt 0:00:02]} 28. Nf3 {[%emt 0:00:10]} a6 {[%emt 0:03:56]} 1/2-1/2

[Event "ESTCC-65 2025"]
[Site "Swidnica"]
[Date "2025.04.11"]
[Round "7.2"]
[White "Joentausta, Hannu"]
[Black "Zyla, Janusz"]
[Result "1/2-1/2"]
[Annotator "ChessBase"]
[ECO "B44"]
[WhiteElo "2081"]
[BlackElo "2181"]
[PlyCount "119"]
[EventDate "2025.04.05"]
[EventType "team-tourn"]
[EventCountry "POL"]
[SourceTitle "playchess.com"]
[Source "ChessBase"]
[SourceQuality "1"]
[WhiteTeam "Finland"]
[BlackTeam "Poland"]
[WhiteTeamCountry "FIN"]
[BlackTeamCountry "POL"]
[TimeControl "40/5400+30:1800+30"]

1. e4 {[%emt 0:00:03]} c5 {[%emt 0:00:19]} 2. Nf3 {[%emt 0:00:07]} e6 {[%emt 0:00:11]} 3. d4 {[%emt 0:00:05]} cxd4 {[%emt 0:00:13]} 4. Nxd4 {[%emt 0:00:03]} Nc6 {[%emt 0:00:29]} 5. g3 {[%emt 0:02:53]} Nf6 {[%emt 0:00:48]} 6. Bg2 {[%emt 0:00:29]} Qb6 {[%emt 0:09:50]} 7. Nb3 {[%emt 0:01:27]} d6 {[%emt 0:01:18]} 8. O-O {[%emt 0:01:10]} Be7 {[%emt 0:00:19]} 9. h3 {[%emt 0:02:54]} Bd7 {[%emt 0:00:48]} 10. Be3 {[%emt 0:04:02]} Qc7 {[%emt 0:00:48]} 11. N1d2 {[%emt 0:05:56]} O-O {[%emt 0:01:21]} 12. Nd4 {[%emt 0:04:52]} d5 {[%emt 0:05:46]} 13. Nb5 {[%emt 0:20:39]} Qb8 {[%emt 0:00:56]} 14. exd5 {[%emt 0:12:47]} Nxd5 {[%emt 0:00:28]} 15. Bxd5 {[%emt 0:01:32]} exd5 {[%emt 0:00:14]} 16. Bf4 {[%emt 0:00:27]} Qd8 {[%emt 0:01:26]} 17. Nc7 {[%emt 0:03:28]} Bxh3 {[%emt 0:07:45]} 18. Nxa8 {[%emt 0:01:43]} Bxf1 {[%emt 0:00:37]} 19. Nxf1 {[%emt 0:00:23]} Qxa8 {[%emt 0:02:07]} 20. Qxd5 {[%emt 0:00:30]} Rd8 {[%emt 0:05:19]} 21. Qe4 Rd4 {[%emt 0:19:35]} 22. Qe2 {[%emt 0:02:42]} Qd8 {[%emt 0:00:24]} 23. Be3 {[%emt 0:02:08]} Rd7 {[%emt 0:01:13]} 24. Re1 {[%emt 0:03:45]} g6 {[%emt 0:02:13]} 25. Nd2 {[%emt 0:05:45]} h5 {[%emt 0:02:47]} 26. Nf3 {[%emt 0:04:13]} Bf6 {[%emt 0:00:45]} 27. c3 {[%emt 0:00:35]} Kg7 {[%emt 0:04:47]} 28. Kg2 {[%emt 0:01:45]} Qa5 {[%emt 0:00:21]} 29. Qc4 {[%emt 0:02:09]} Qf5 {[%emt 0:01:33]} 30. Bc1 {[%emt 0:07:53]} Rd5 {[%emt 0:15:41]} 31. Qe4 {[%emt 0:01:41]} Qxe4 {[%emt 0:04:36]} 32. Rxe4 {[%emt 0:00:02]} g5 {[%emt 0:01:58]} 33. Be3 {[%emt 0:03:23]} g4 {[%emt 0:01:02]} 34. Nd2 {[%emt 0:02:08]} a6 {[%emt 0:01:07]} 35. Kf1 {[%emt 0:01:55]} Be5 {[%emt 0:01:27]} 36. Rc4 {[%emt 0:01:55]} f5 {[%emt 0:01:14]} 37. Rc5 {[%emt 0:00:26]} Rxc5 {[%emt 0:02:44]} 38. Bxc5 {[%emt 0:00:02]} f4 {[%emt 0:00:21]} 39. Ne4 {[%emt 0:00:33]} fxg3 {[%emt 0:03:21]} 40. fxg3 {[%emt 0:00:00]} Kg6 {[%emt 0:00:00]} 41. Bd6 {[%emt 0:03:33]} Kf5 {[%emt 0:01:15]} 42. Bxe5 {[%emt 0:00:11]} Kxe4 {[%emt 0:00:18]} 43. Bd6 {[%emt 0:06:38]} Kd3 {[%emt 0:01:20]} 44. Kf2 {[%emt 0:00:18]} b5 {[%emt 0:14:22]} 45. b3 {[%emt 0:07:20]} Nd8 {[%emt 0:05:03]} 46. c4 {[%emt 0:01:01]} bxc4 {[%emt 0:00:08]} 47. bxc4 {[%emt 0:00:10]} Kxc4 {[%emt 0:00:06]} 48. Ke3 {[%emt 0:00:14]} Kd5 {[%emt 0:00:09]} 49. Be7 {[%emt 0:01:46]} Nc6 {[%emt 0:00:43]} 50. Bf6 {[%emt 0:01:09]} Ke6 {[%emt 0:00:32]} 51. Bc3 {[%emt 0:00:34]} Kf5 {[%emt 0:08:30]} 52. a4 {[%emt 0:06:15]} Ne5 {[%emt 0:00:48]} 53. a5 {[%emt 0:02:28]} Nf3 {[%emt 0:00:39]} 54. Bb4 {[%emt 0:00:37]} h4 {[%emt 0:00:50]} 55. gxh4 {[%emt 0:00:11]} Nxh4 {[%emt 0:00:03]} 56. Bd6 {[%emt 0:01:27]} Ke6 {[%emt 0:01:41]} 57. Bb8 {[%emt 0:00:59]} Nf5+ {[%emt 0:00:45]} 58. Kf4 {[%emt 0:04:02]} g3 {[%emt 0:00:10]} 59. Kf3 {[%emt 0:00:10]} Kd5 {[%emt 0:00:05]} 60. Bxg3 {[%emt 0:00:41]} 1/2-1/2

[Event "ESTCC-65 2025"]
[Site "Swidnica"]
[Date "2025.04.11"]
[Round "7.3"]
[White "Czajkowski, Ryszard"]
[Black "Vinke, Dietmar"]
[Result "1-0"]
[Annotator "NA"]
[ECO "E91"]
[WhiteElo "1963"]
[BlackElo "2078"]
[PlyCount "79"]
[EventDate "2025.04.05"]
[EventType "team-tourn"]
[EventCountry "POL"]
[SourceTitle "playchess.com"]
[Source "ChessBase"]
[SourceQuality "1"]
[WhiteTeam "Poland"]
[BlackTeam "Finland"]
[WhiteTeamCountry "POL"]
[BlackTeamCountry "FIN"]
[TimeControl "40/5400+30:1800+30"]

1. d4 {[%emt 0:00:03]} Nf6 {[%emt 0:00:07]} 2. c4 {[%emt 0:00:11]} g6 {[%emt 0:00:05]} 3. Nc3 {[%emt 0:00:08]} Bg7 {[%emt 0:00:04]} 4. e4 {[%emt 0:00:12]} d6 {[%emt 0:00:06]} 5. Be2 {[%emt 0:00:29]} O-O {[%emt 0:00:17]} 6. Nf3 {[%emt 0:00:08]} Nbd7 {[%emt 0:00:07]} 7. O-O {[%emt 0:00:48]} e5 {[%emt 0:00:06]} 8. dxe5 {[%emt 0:00:47]} dxe5 {[%emt 0:00:06]} 9. Qc2 {[%emt 0:06:41]} c6 {[%emt 0:01:24]} 10. b4 {[%emt 0:00:23]} Re8 {[%emt 0:13:56]} 11. Rd1 {[%emt 0:05:22]} Nh5 {[%emt 0:07:54]} 12. Bg5 {[%emt 0:05:09]} Qc7 {[%emt 0:03:26]} 13. Be3 {[%emt 0:04:33]} Nf4 {[%emt 0:03:12]} 14. Bf1 {[%emt 0:00:03]} Nf8 {[%emt 0:00:38]} 15. h3 {[%emt 0:04:14]} N8e6 {[%emt 0:10:48]} 16. Rab1 {[%emt 0:06:40]} Rd8 {[%emt 0:02:01]} 17. Rxd8+ {[%emt 0:12:51]} Qxd8 {[%emt 0:00:22]} 18. Rd1 {[%emt 0:00:10]} Qf6 {[%emt 0:08:11]} 19. h4 {[%emt 0:00:23]} Qe7 {[%emt 0:10:23]} 20. g3 {[%emt 0:06:36]} Nh5 {[%emt 0:00:07]} 21. b5 {[%emt 0:02:09]} Qc7 {[%emt 0:04:48]} 22. Qd2 {[%emt 0:11:23]} Bf8 {[%emt 0:06:30]} 23. Na4 {[%emt 0:09:11]} Nf6 {[%emt 0:02:08]} 24. Bxa7 {[%emt 0:05:54]} Nxe4 {[%emt 0:07:12]} 25. Qe1 {[%emt 0:01:41]} f5 {[%emt 0:04:07]} 26. Bb6 {[%emt 0:06:32]} Qg7 {[%emt 0:02:01]} 27. Nb2 {[%emt 0:03:01]} N6c5 {[%emt 0:07:57]} 28. Nd3 {[%emt 0:02:37]} Rxa2 {[%emt 0:02:53]} 29. Nxc5 {[%emt 0:02:19]} Nxc5 {[%emt 0:01:59]} 30. Qxe5 {[%emt 0:00:36]} Nd7 {[%emt 0:00:34]} 31. Qe6+ {[%emt 0:01:30]} Qf7 {[%emt 0:00:26]} 32. Qxf7+ {[%emt 0:01:10]} Kxf7 {[%emt 0:00:01]} 33. bxc6 {[%emt 0:01:05]} bxc6 {[%emt 0:00:05]} 34. Be3 {[%emt 0:00:31]} h6 {[%emt 0:02:13]} 35. Nd4 {[%emt 0:00:06]} c5 {[%emt 0:00:42]} 36. Nb5 {[%emt 0:00:31]} Ke6 {[%emt 0:00:20]} 37. Nc7+ {[%emt 0:00:34]} Kf7 {[%emt 0:00:06]} 38. Bg2 {[%emt 0:02:08]} Ra7 {[%emt 0:00:53]} 39. Nb5 {[%emt 0:00:23]} Ra6 {[%emt 0:00:31]} 40. Bb7 {[%emt 0:00:00]} 1-0

[Event "ESTCC-65 2025"]
[Site "Swidnica"]
[Date "2025.04.11"]
[Round "7.4"]
[White "Patola, Eero"]
[Black "Krupa, Krzysztof"]
[Result "1/2-1/2"]
[Annotator "NA"]
[ECO "A22"]
[WhiteElo "1872"]
[BlackElo "1919"]
[PlyCount "44"]
[EventDate "2025.04.05"]
[EventType "team-tourn"]
[EventCountry "POL"]
[SourceTitle "playchess.com"]
[Source "ChessBase"]
[SourceQuality "1"]
[WhiteTeam "Finland"]
[BlackTeam "Poland"]
[WhiteTeamCountry "FIN"]
[BlackTeamCountry "POL"]
[TimeControl "40/5400+30:1800+30"]

1. c4 {[%emt 0:00:06]} e5 {[%emt 0:00:43]} 2. Nc3 {[%emt 0:00:17]} Nf6 {[%emt 0:00:44]} 3. e4 {[%emt 0:00:23]} Nc6 {[%emt 0:00:54]} 4. g3 {[%emt 0:00:21]} Bc5 {[%emt 0:00:52]} 5. Bg2 {[%emt 0:00:25]} d6 {[%emt 0:02:08]} 6. h3 {[%emt 0:00:14]} Nd7 {[%emt 0:05:29]} 7. d3 {[%emt 0:03:45]} Nf8 {[%emt 0:01:13]} 8. Nd5 {[%emt 0:08:56]} Ne6 {[%emt 0:02:30]} 9. Ne2 {[%emt 0:05:15]} O-O {[%emt 0:06:03]} 10. O-O {[%emt 0:05:14]} a5 {[%emt 0:05:45]} 11. Kh2 {[%emt 0:01:17]} Ncd4 {[%emt 0:01:24]} 12. f4 {[%emt 0:03:15]} Nxe2 {[%emt 0:05:10]} 13. Qxe2 {[%emt 0:01:14]} c6 {[%emt 0:00:02]} 14. Nc3 {[%emt 0:02:26]} exf4 {[%emt 0:06:07]} 15. gxf4 {[%emt 0:04:11]} Qh4 {[%emt 0:10:17]} 16. Qg4 {[%emt 0:16:00]} Qxg4 {[%emt 0:09:32]} 17. hxg4 {[%emt 0:00:12]} Nd4 {[%emt 0:00:56]} 18. f5 {[%emt 0:03:51]} f6 {[%emt 0:01:29]} 19. Rb1 {[%emt 0:09:10]} Bd7 {[%emt 0:08:26]} 20. Bf4 {[%emt 0:04:27]} Rfd8 {[%emt 0:06:41]} 21. a3 {[%emt 0:12:28]} a4 {[%emt 0:02:38]} 22. Rfe1 {[%emt 0:02:01]} Be8 {[%emt 0:02:33]} 1/2-1/2

[Event "ESTCC-65 2025"]
[Site "Swidnica"]
[Date "2025.04.11"]
[Round "7.5"]
[White "Beilfuss, Wilfried"]
[Black "Maier, Christian"]
[Result "1/2-1/2"]
[Annotator "ChessBase"]
[ECO "A04"]
[WhiteElo "2070"]
[BlackElo "2233"]
[PlyCount "56"]
[EventDate "2025.04.05"]
[EventType "team-tourn"]
[EventCountry "POL"]
[SourceTitle "playchess.com"]
[Source "ChessBase"]
[SourceQuality "1"]
[WhiteTeam "Germany"]
[BlackTeam "Germany"]
[WhiteTeamCountry "GER"]
[BlackTeamCountry "GER"]
[TimeControl "40/5400+30:1800+30"]

1. Nf3 {[%emt 0:00:08]} d6 {[%emt 0:01:20]} 2. d4 {[%emt 0:00:22]} g6 {[%emt 0:01:05]} 3. c4 {[%emt 0:00:48]} Bg7 {[%emt 0:00:04]} 4. Nc3 {[%emt 0:01:46]} Nd7 {[%emt 0:00:35]} 5. g3 {[%emt 0:00:49]} e5 {[%emt 0:01:05]} 6. Bg2 {[%emt 0:00:42]} exd4 {[%emt 0:01:38]} 7. Nxd4 {[%emt 0:00:19]} Ne7 {[%emt 0:02:27]} 8. O-O {[%emt 0:01:42]} O-O {[%emt 0:00:18]} 9. e3 {[%emt 0:05:35]} a6 {[%emt 0:05:21]} 10. b3 {[%emt 0:01:57]} Rb8 {[%emt 0:00:36]} 11. a4 {[%emt 0:05:06]} a5 {[%emt 0:00:25]} 12. Bb2 {[%emt 0:02:11]} Ne5 {[%emt 0:03:11]} 13. Qd2 {[%emt 0:06:43]} Re8 {[%emt 0:05:42]} 14. Nd5 {[%emt 0:08:36]} N7c6 {[%emt 0:06:41]} 15. Nb5 {[%emt 0:05:20]} Re7 {[%emt 0:09:28]} 16. Nxe7+ {[%emt 0:00:55]} Qxe7 {[%emt 0:00:34]} 17. Nc3 {[%emt 0:01:35]} Be6 {[%emt 0:01:21]} 18. Nd5 {[%emt 0:01:17]} Bxd5 {[%emt 0:00:05]} 19. cxd5 {[%emt 0:00:20]} Nb4 {[%emt 0:00:07]} 20. Bc3 {[%emt 0:02:43]} Nd7 {[%emt 0:00:21]} 21. Bxb4 {[%emt 0:04:48]} Bxa1 {[%emt 0:00:58]} 22. Rxa1 {[%emt 0:02:08]} axb4 {[%emt 0:00:04]} 23. Qxb4 {[%emt 0:00:08]} Qe5 {[%emt 0:05:12]} 24. Rd1 {[%emt 0:02:13]} Nc5 {[%emt 0:00:30]} 25. Rd4 {[%emt 0:03:41]} Ne6 {[%emt 0:11:45]} 26. Rd1 {[%emt 0:03:40]} Nc5 {[%emt 0:00:04]} 27. Qc4 {[%emt 0:03:15]} Qb2 {[%emt 0:02:44]} 28. b4 {[%emt 0:01:54]} Na6 {[%emt 0:00:42]} 1/2-1/2

[Event "ESTCC-65 2025"]
[Site "Swidnica"]
[Date "2025.04.11"]
[Round "7.6"]
[White "Raupp, Thomas"]
[Black "Woestmann, Hans-Joachim"]
[Result "1/2-1/2"]
[Annotator "ChessBase"]
[ECO "D35"]
[WhiteElo "2247"]
[BlackElo "2029"]
[PlyCount "53"]
[EventDate "2025.04.05"]
[EventType "team-tourn"]
[EventCountry "POL"]
[SourceTitle "playchess.com"]
[Source "ChessBase"]
[SourceQuality "1"]
[WhiteTeam "Germany"]
[BlackTeam "Germany"]
[WhiteTeamCountry "GER"]
[BlackTeamCountry "GER"]
[TimeControl "40/5400+30:1800+30"]

1. c4 {[%emt 0:00:08]} e6 {[%emt 0:00:21]} 2. d4 {[%emt 0:03:35]} d5 {[%emt 0:00:24]} 3. Nc3 {[%emt 0:00:19]} Nf6 {[%emt 0:00:17]} 4. cxd5 {[%emt 0:01:07]} exd5 {[%emt 0:00:21]} 5. Bg5 {[%emt 0:00:20]} Be7 {[%emt 0:01:21]} 6. e3 {[%emt 0:00:10]} h6 {[%emt 0:01:03]} 7. Bh4 {[%emt 0:00:26]} c6 {[%emt 0:01:00]} 8. Bd3 {[%emt 0:02:52]} O-O {[%emt 0:00:52]} 9. Qc2 {[%emt 0:02:37]} Re8 {[%emt 0:01:03]} 10. Nge2 {[%emt 0:06:50]} Nbd7 {[%emt 0:01:45]} 11. O-O {[%emt 0:01:40]} a5 {[%emt 0:05:18]} 12. f3 {[%emt 0:04:37]} b5 {[%emt 0:01:01]} 13. Bf2 {[%emt 0:05:40]} Ba6 {[%emt 0:01:41]} 14. Kh1 {[%emt 0:11:10]} Qb8 {[%emt 0:24:09]} 15. e4 {[%emt 0:15:59]} dxe4 {[%emt 0:01:03]} 16. fxe4 {[%emt 0:04:19]} c5 {[%emt 0:17:10]} 17. Bg3 {[%emt 0:08:01]} Qc8 {[%emt 0:16:02]} 18. Bxb5 {[%emt 0:15:02]} cxd4 {[%emt 0:03:09]} 19. Nxd4 {[%emt 0:01:25]} Bc5 {[%emt 0:08:33]} 20. Bxa6 {[%emt 0:01:44]} Qxa6 {[%emt 0:02:46]} 21. Nf5 {[%emt 0:03:53]} Qb7 {[%emt 0:04:46]} 22. Rad1 {[%emt 0:00:59]} Ra6 {[%emt 0:01:50]} 23. Bd6 {[%emt 0:05:57]} Qc6 {[%emt 0:03:06]} 24. e5 {[%emt 0:02:29]} Nxe5 {[%emt 0:02:44]} 25. Bxe5 {[%emt 0:00:30]} Rxe5 {[%emt 0:00:18]} 26. Rd8+ {[%emt 0:00:07]} Re8 {[%emt 0:00:22]} 27. Rxe8+ {[%emt 0:00:31]} 1/2-1/2

[Event "ESTCC-65 2025"]
[Site "Swidnica"]
[Date "2025.04.11"]
[Round "7.7"]
[White "Mueller, Gerhard"]
[Black "Vatter, Hans-Joachim"]
[Result "1/2-1/2"]
[Annotator "ChessBase"]
[ECO "D01"]
[WhiteElo "2052"]
[BlackElo "2192"]
[PlyCount "25"]
[EventDate "2025.04.05"]
[EventType "team-tourn"]
[EventCountry "POL"]
[SourceTitle "playchess.com"]
[Source "ChessBase"]
[SourceQuality "1"]
[WhiteTeam "Germany"]
[BlackTeam "Germany"]
[WhiteTeamCountry "GER"]
[BlackTeamCountry "GER"]
[TimeControl "40/5400+30:1800+30"]

1. d4 {[%emt 0:00:03]} Nf6 {[%emt 0:00:22]} 2. Nc3 {[%emt 0:00:05]} d5 {[%emt 0:01:03]} 3. Bg5 {[%emt 0:00:08]} Bf5 {[%emt 0:03:07]} 4. e3 {[%emt 0:00:12]} e6 {[%emt 0:01:57]} 5. Bd3 {[%emt 0:00:26]} Bxd3 {[%emt 0:03:59]} 6. cxd3 {[%emt 0:00:20]} c5 {[%emt 0:00:12]} 7. dxc5 {[%emt 0:00:11]} Bxc5 {[%emt 0:00:09]} 8. d4 {[%emt 0:00:04]} Bd6 {[%emt 0:03:10]} 9. Qb3 {[%emt 0:08:13]} Qe7 {[%emt 0:06:27]} 10. Nf3 {[%emt 0:03:07]} O-O {[%emt 0:04:52]} 11. O-O {[%emt 0:00:44]} Nc6 {[%emt 0:04:46]} 12. Nb5 {[%emt 0:09:09]} Rad8 {[%emt 0:13:19]} 13. Nxd6 {[%emt 0:02:11]} 1/2-1/2

[Event "ESTCC-65 2025"]
[Site "Swidnica"]
[Date "2025.04.11"]
[Round "7.8"]
[White "Vogel, Robert"]
[Black "Becker, Norbert"]
[Result "1-0"]
[Annotator "NA"]
[ECO "E25"]
[WhiteElo "2145"]
[BlackElo "2032"]
[PlyCount "67"]
[EventDate "2025.04.05"]
[EventType "team-tourn"]
[EventCountry "POL"]
[SourceTitle "playchess.com"]
[Source "ChessBase"]
[SourceQuality "1"]
[WhiteTeam "Germany"]
[BlackTeam "Germany"]
[WhiteTeamCountry "GER"]
[BlackTeamCountry "GER"]
[TimeControl "40/5400+30:1800+30"]

1. d4 {[%emt 0:00:08]} Nf6 {[%emt 0:00:10]} 2. c4 {[%emt 0:00:08]} e6 {[%emt 0:00:16]} 3. Nc3 {[%emt 0:00:32]} Bb4 {[%emt 0:00:43]} 4. f3 {[%emt 0:02:17]} d5 {[%emt 0:03:39]} 5. a3 {[%emt 0:00:28]} Bxc3+ {[%emt 0:08:47]} 6. bxc3 {[%emt 0:00:15]} c5 {[%emt 0:03:42]} 7. cxd5 {[%emt 0:02:16]} exd5 {[%emt 0:00:54]} 8. e3 {[%emt 0:03:02]} Nc6 {[%emt 0:02:18]} 9. Bd3 {[%emt 0:00:54]} Be6 {[%emt 0:08:31]} 10. Ne2 {[%emt 0:01:30]} Rc8 {[%emt 0:02:55]} 11. O-O {[%emt 0:02:08]} Qd7 {[%emt 0:07:20]} 12. Kh1 {[%emt 0:08:11]} c4 {[%emt 0:12:22]} 13. Bc2 {[%emt 0:01:59]} Bf5 {[%emt 0:00:39]} 14. Ng3 {[%emt 0:09:41]} Bxc2 {[%emt 0:00:23]} 15. Qxc2 {[%emt 0:00:03]} O-O {[%emt 0:02:27]} 16. e4 {[%emt 0:22:03]} Na5 {[%emt 0:03:51]} 17. Be3 {[%emt 0:06:22]} Ne8 {[%emt 0:04:07]} 18. Rae1 {[%emt 0:04:16]} Nc7 {[%emt 0:03:35]} 19. Nf5 {[%emt 0:04:21]} g6 {[%emt 0:15:18]} 20. Nh6+ {[%emt 0:01:37]} Kh8 {[%emt 0:00:49]} 21. e5 {[%emt 0:05:34]} Ne6 {[%emt 0:03:54]} 22. f4 {[%emt 0:08:56]} f5 {[%emt 0:02:18]} 23. exf6 {[%emt 0:00:07]} Rxf6 {[%emt 0:00:40]} 24. Ng4 {[%emt 0:01:55]} Rff8 {[%emt 0:02:31]} 25. Ne5 {[%emt 0:03:53]} Qg7 {[%emt 0:01:26]} 26. g4 {[%emt 0:03:26]} Nc7 {[%emt 0:02:11]} 27. f5 {[%emt 0:00:45]} g5 {[%emt 0:01:59]} 28. Nf3 {[%emt 0:01:30]} h6 {[%emt 0:01:00]} 29. Ne5 {[%emt 0:00:09]} Rf6 {[%emt 0:01:01]} 30. Bf2 {[%emt 0:00:31]} Kh7 {[%emt 0:02:56]} 31. Bg3 {[%emt 0:00:22]} Rd8 {[%emt 0:02:15]} 32. Ng6 {[%emt 0:00:38]} Nc6 {[%emt 0:00:34]} 33. Be5 {[%emt 0:01:50]} Qf7 {[%emt 0:01:29]} 34. Rb1 1-0

[Event "ESTCC-65 2025"]
[Site "Swidnica"]
[Date "2025.04.11"]
[Round "7.9"]
[White "Nunn, John D M"]
[Black "Sandner, Gunter"]
[Result "1-0"]
[Annotator "ChessBase"]
[ECO "B33"]
[WhiteElo "2528"]
[BlackElo "2243"]
[PlyCount "81"]
[EventDate "2025.04.05"]
[EventType "team-tourn"]
[EventCountry "POL"]
[SourceTitle "playchess.com"]
[Source "ChessBase"]
[SourceQuality "1"]
[WhiteTeam "England"]
[BlackTeam "Germany"]
[WhiteTeamCountry "ENG"]
[BlackTeamCountry "GER"]
[TimeControl "40/5400+30:1800+30"]

1. e4 {[%emt 0:00:06]} c5 {[%emt 0:00:13]} 2. Nf3 {[%emt 0:00:08]} Nc6 {[%emt 0:00:10]} 3. d4 {[%emt 0:00:20]} cxd4 {[%emt 0:00:05]} 4. Nxd4 {[%emt 0:00:05]} Nf6 {[%emt 0:00:10]} 5. Nc3 {[%emt 0:00:06]} e5 {[%emt 0:00:07]} 6. Ndb5 {[%emt 0:00:08]} d6 {[%emt 0:00:07]} 7. Bg5 {[%emt 0:00:09]} a6 {[%emt 0:00:07]} 8. Na3 {[%emt 0:00:06]} b5 {[%emt 0:00:11]} 9. Nd5 {[%emt 0:00:17]} Be7 {[%emt 0:00:10]} 10. Bxf6 {[%emt 0:00:08]} Bxf6 {[%emt 0:00:03]} 11. c3 {[%emt 0:00:09]} O-O {[%emt 0:00:36]} 12. Nc2 {[%emt 0:00:17]} Rb8 {[%emt 0:01:14]} 13. h4 {[%emt 0:00:55]} g6 {[%emt 0:05:43]} 14. Nce3 {[%emt 0:01:43]} Bg7 {[%emt 0:05:14]} 15. h5 {[%emt 0:00:34]} Ne7 {[%emt 0:03:33]} 16. g3 {[%emt 0:11:41]} Nxd5 {[%emt 0:21:31]} 17. Nxd5 {[%emt 0:00:29]} Be6 {[%emt 0:03:22]} 18. a3 {[%emt 0:07:55]} Qd7 {[%emt 0:05:35]} 19. Qd2 {[%emt 0:04:19]} Qb7 {[%emt 0:19:17]} 20. hxg6 {[%emt 0:05:05]} hxg6 {[%emt 0:00:34]} 21. Rd1 {[%emt 0:01:49]} Bxd5 {[%emt 0:01:02]} 22. Qxd5 {[%emt 0:00:07]} Qxd5 {[%emt 0:00:07]} 23. Rxd5 {[%emt 0:00:05]} Rb6 {[%emt 0:00:46]} 24. Bh3 {[%emt 0:04:34]} Rfb8 {[%emt 0:05:07]} 25. Kd2 {[%emt 0:05:19]} Bf6 {[%emt 0:01:47]} 26. Kc2 {[%emt 0:01:03]} Kf8 27. Bf1 {[%emt 0:07:33]} Ke7 {[%emt 0:04:53]} 28. Be2 {[%emt 0:03:18]} Rc8 {[%emt 0:01:11]} 29. Kb3 {[%emt 0:02:16]} Rc5 {[%emt 0:02:56]} 30. Kb4 {[%emt 0:01:44]} Rbc6 {[%emt 0:02:34]} 31. a4 {[%emt 0:01:52]} bxa4 {[%emt 0:04:44]} 32. Kxa4 {[%emt 0:10:40]} Rxd5 {[%emt 0:04:35]} 33. exd5 {[%emt 0:00:07]} Rc5 {[%emt 0:00:03]} 34. Rd1 {[%emt 0:03:58]} Rc8 {[%emt 0:02:51]} 35. Ka5 {[%emt 0:06:10]} e4 {[%emt 0:02:15]} 36. Bxa6 {[%emt 0:06:19]} Bxc3+ {[%emt 0:01:52]} 37. bxc3 {[%emt 0:00:09]} Rxc3 {[%emt 0:00:02]} 38. Rd2 {[%emt 0:10:18]} Kf6 {[%emt 0:01:01]} 39. Kb4 {[%emt 0:00:49]} Rf3 {[%emt 0:01:20]} 40. Bc8 {[%emt 0:00:00]} e3 {[%emt 0:00:00]} 41. Rd3 {[%emt 0:03:28]} 1-0

[Event "ESTCC-65 2025"]
[Site "Swidnica"]
[Date "2025.04.11"]
[Round "7.10"]
[White "Kyas, Juergen"]
[Black "Kosten, Anthony C."]
[Result "1/2-1/2"]
[Annotator "ChessBase"]
[ECO "C24"]
[WhiteElo "2168"]
[BlackElo "2366"]
[PlyCount "41"]
[EventDate "2025.04.05"]
[EventType "team-tourn"]
[EventCountry "POL"]
[SourceTitle "playchess.com"]
[Source "ChessBase"]
[SourceQuality "1"]
[WhiteTeam "Germany"]
[BlackTeam "England"]
[WhiteTeamCountry "GER"]
[BlackTeamCountry "ENG"]
[TimeControl "40/5400+30:1800+30"]

1. e4 {[%emt 0:00:02]} e5 {[%emt 0:00:09]} 2. Bc4 {[%emt 0:00:12]} Nf6 {[%emt 0:00:09]} 3. d3 {[%emt 0:00:10]} c6 {[%emt 0:00:22]} 4. Nf3 {[%emt 0:00:24]} d5 {[%emt 0:00:10]} 5. Bb3 {[%emt 0:00:12]} Bd6 {[%emt 0:00:21]} 6. exd5 {[%emt 0:01:14]} Nxd5 {[%emt 0:00:50]} 7. O-O {[%emt 0:01:26]} Bg4 {[%emt 0:00:50]} 8. h3 {[%emt 0:05:38]} Bh5 {[%emt 0:00:49]} 9. Nbd2 {[%emt 0:00:16]} Nd7 {[%emt 0:03:54]} 10. Ne4 {[%emt 0:02:16]} Bc7 {[%emt 0:02:17]} 11. Ng3 {[%emt 0:04:06]} Bg6 {[%emt 0:00:12]} 12. Bg5 {[%emt 0:03:03]} f6 {[%emt 0:00:54]} 13. Bd2 {[%emt 0:00:02]} Nc5 {[%emt 0:05:25]} 14. Nh4 {[%emt 0:02:09]} Nxb3 {[%emt 0:01:13]} 15. axb3 {[%emt 0:01:03]} Qd7 {[%emt 0:06:51]} 16. Re1 {[%emt 0:10:49]} O-O {[%emt 0:01:52]} 17. Nxg6 {[%emt 0:01:48]} hxg6 {[%emt 0:00:11]} 18. Ne4 {[%emt 0:02:30]} Bb6 19. Nc3 {[%emt 0:15:49]} Rad8 {[%emt 0:16:18]} 20. Nxd5 {[%emt 0:03:17]} Qxd5 {[%emt 0:03:27]} 21. Be3 {[%emt 0:00:36]} 1/2-1/2